Cogmind - Beta 17.1 @@@ ROGUE MODE // 2026.09.15 @ 18:03:33 Player: pirluit Result: Destroyed by D-53 Grenadier with Mini Grenade Launcher Performance ------------- Evolutions (0) 0 Regions Visited (2) 400 Robots Destroyed (12) 60 Value Destroyed (194) 194 Prototype IDs (0) 0 Alien Tech Used (0) 0 Bonus (0) 0 TOTAL SCORE: 654 Bonus ------- None Cogmind --------- Core Integrity 0/250 Matter 153/300 Energy 70/250 System Corruption 0% Temperature Cool (0) Movement Core (100) Ox1 Location -10/Mines Parts ------- > --- POWER (1) -------- Ion Engine > --- PROPULSION (2) --- (None) > --- UTILITY (2) ------ Improved Heat Sink > --- WEAPON (2) ------- (None) > --- INVENTORY (5) ---- Medium Storage Unit Signal Interpreter Beam Rifle Light Assault Rifle Rocket Launcher Peak State ------------ > --- POWER ------------ Ion Engine > --- PROPULSION ------- Aluminum Leg Aluminum Leg > --- UTILITY ---------- Small Storage Unit Seismic Detector > --- WEAPON ----------- Particle Cannon Rocket Launcher > --- INVENTORY -------- Ion Engine Aluminum Leg Improved Heat Sink Medium Storage Unit Signal Interpreter Beam Rifle Particle Cannon Light Assault Rifle [Rating: 10] Favorites ----------- Power Ion Engine Engine Ion Engine Propulsion Aluminum Leg Treads Light Treads Leg Aluminum Leg Utility Small Storage Unit Device Seismic Detector Storage Small Storage Unit Weapon Particle Cannon Energy Gun Medium Laser Energy Cannon Particle Cannon Ballistic Gun Light Assault Rifle Launcher Rocket Launcher Build | -11 -10 -10 ------- Run | Yrd Mat Min Slots Evolved . | . . . Power . | . . . Propulsion . | . . . Utility . | . . . Weapon . | . . . Parts Attached 15 | 7 3 5 Power 2 | 1 . 1 Engine 2 | 1 . 1 Core . | . . . Reactor . | . . . Propulsion 5 | 2 2 1 Treads 2 | 2 . . Leg 3 | . 2 1 Wheel . | . . . Hover . | . . . Flight . | . . . Utility 3 | 2 . 1 Device 2 | 1 . 1 Storage 1 | 1 . . Processor . | . . . Hackware . | . . . Protection . | . . . Artifact . | . . . Weapon 5 | 2 1 2 Energy Gun 1 | 1 . . Energy Cannon 2 | . 1 1 Ballistic Gun 1 | 1 . . Ballistic Cannon . | . . . Launcher 1 | . . 1 Special Weapon . | . . . Impact Weapon . | . . . Slashing Weapon . | . . . Piercing Weapon . | . . . Special Melee Weapon . | . . . Unidentified Prototypes . | . . . Parts Lost 7 | . . 7 Power 1 | . . 1 Propulsion 3 | . . 3 Utility 1 | . . 1 Weapon 2 | . . 2 Highest Loss Streak 6 | . . 6 To Critical Strikes . | . . . Average Backups 6 | 3 7 7 Power . | . 1 1 Propulsion 1 | 1 2 1 Utility 1 | . 1 2 Weapon 2 | . 2 3 Tool/Special . | . . . Unused Backups 6 | . 1 5 Power 1 | . . 1 Propulsion . | . . . Utility 3 | . . 3 Weapon 2 | . 1 1 Tool/Special . | . . . Average Slot Usage (%) 97 | . 100 95 Engine 13 | . 14 13 Treads 5 | . 14 . Leg 21 | . 14 26 Device 12 | . 14 12 Storage 14 | . 14 14 Energy Gun 8 | . 14 3 Energy Cannon 13 | . 12 13 Ballistic Gun 4 | . 1 7 Launcher 1 | . . 2 Peak Build Rating 10 | 7 9 10 Average Rating 8 | 4 8 8 On Entrance 5 | . 7 9 Avg Prop Armor Cover (%) 8 | . 8 . Naked Turns . | . . . Heaviest Build 19 | 14 17 19 Greatest Support 40 | 40 40 20 Greatest Overweight (x) 5 | . . 5 Average Overweight (x) . | . . . Largest Inventory Capacity 8 | 8 8 8 Average Capacity 7 | 7 8 7 Most Carried 8 | 5 8 8 Average Carried 6 | 3 7 7 Final Capacity 8 | 8 8 5 Final Carried 8 | 5 8 5 Class Distribution -------------------- 100% | Mutant Dominant Class ---------------- Mutant | -10/Materials Mutant | -10/Mines Resources | -11 -10 -10 ----------- Run | Yrd Mat Min Matter Collected 331 | 188 52 91 Remotely . | . . . Salvage Created 353 | 44 65 244 Parts 27 | 6 11 10 Haulers Intercepted . | . . . Recyclers Shooed 2 | . 2 . Parts Field Recycled . | . . . Retrieved Matter . | . . . Parts Self-Destructed . | . . . Prevented . | . . . Parts Restored . | . . . Kills | -11 -10 -10 ------- Run | Yrd Mat Min Combat Hostiles Destroyed 29 | . 4 25 Guns 7 | . 3 4 Cannons 4 | . 1 3 AOE 18 | . . 18 Classes Destroyed 5 | 1 2 2 Builder 1 | . . 1 Tunneler 2 | 2 . . Swarmer 6 | . 3 3 Grunt 3 | . 1 2 Assembled 20 | . . 20 Best Kill Streak 21 | 1 3 21 Combat Bots Only 20 | . 3 20 Max Kills in Single Turn 7 | 1 1 7 Gunslinging . | . . . Exploded 6 | . . 6 Melee . | . . . Uniques/NPCs Destroyed . | . . . Combat | -11 -10 -10 -------- Run | Yrd Mat Min Hostile Shots Fired 68 | . 13 55 Missed 16 | . 7 9 Hits 52 | . 6 46 Projectile 52 | . 6 46 AOE 15 | . . 15 Critical Strikes 1 | . . 1 Damage Taken 1003 | . 57 946 Core 263 | . 10 253 Absorbed by Shields . | . . . Core Remaining (%) 100 | 100 . . Volleys Fired 36 | 5 9 22 Largest 2 | 2 2 2 Hottest 118 | 70 118 118 Shots Fired 71 | 10 18 43 Gun 28 | 10 9 9 Cannon 31 | . 9 22 Launcher 12 | . . 12 Special . | . . . Kinetic 10 | 5 . 5 Thermal 49 | 5 18 26 Explosive 12 | . . 12 Electromagnetic . | . . . Robot Hit Streak 10 | 4 10 7 Robot Miss Streak 3 | 2 3 3 Penetration Max . | . . . Secondary Targets . | . . . Shots Hit Robots 34 | 4 9 21 Core Hits 44 | 2 5 37 Critical Kills . | . . . Critical Parts Destroyed . | . . . Critical Strikes 1 | . 1 . Burn 1 | . 1 . Melee Attacks . | . . . Impact . | . . . Slashing . | . . . Piercing . | . . . Sneak Attacks . | . . . Combat Hostiles . | . . . Follow-up Attacks . | . . . Damage Inflicted 1611 | 58 136 1417 Guns 211 | 58 88 65 Cannons 247 | . 41 206 Explosions 1146 | . . 1146 Melee . | . . . Ramming 7 | . 7 . Kinetic 46 | 20 . 26 Thermal 412 | 38 129 245 Explosive 1146 | . . 1146 Electromagnetic . | . . . Impact . | . . . Slashing . | . . . Piercing . | . . . Highest Corruption . | . . . Average Corruption . | . . . Corruption Purged . | . . . Corruption Blocked . | . . . Overload Shots . | . . . Overflow Damage 39 | . . 39 Projectiles 14 | . . 14 Explosions 25 | . . 25 Melee . | . . . Knockbacks . | . . . Impact . | . . . Kinetic . | . . . Secondary . | . . . Self-Inflicted Damage 11 | . . 11 Shots 1 | . . 1 Rammed . | . . . Targets Rammed 2 | . 2 . Kicked 2 | . 2 . Crushed . | . . . Highest Temperature 404 | 60 234 404 Average Temperature 129 | 28 107 156 Received Heat Transfer 60 | . 6 54 Effects 2 | . 1 1 Shutdowns 1 | . . 1 Energy Bleed 1 | . 1 . Siege Activations . | . . . Martial Activations . | . . . Shielding Activations . | . . . Robots Disrupted . | . . . Combat Hostiles . | . . . Robots Corrupted . | . . . Combat Hostiles . | . . . Parts Fried . | . . . Impact Corruptions . | . . . Robots Melted . | . . . Combat Hostiles . | . . . Parts Melted 2 | . . 2 Heat Transferred 999 | 111 407 481 Parts Sabotaged . | . . . Parts Stolen . | . . . Parts Stripped . | . . . Power Chain Reactions . | . . . Alert | -11 -10 -10 ------- Run | Yrd Mat Min Maximum Alert Level . | . . . Low Security (%) 100 | 100 100 100 Level 1 . | . . . Level 2 . | . . . Level 3 . | . . . Level 4 . | . . . Level 5 . | . . . High Security . | . . . Max Security . | . . . Peak Influence 81 | 5 81 74 Initial 19 | . . 19 Average 34 | . 28 53 Influence Increases 307 | 10 101 196 Destroy 0b10 Robot/C 180 | . 80 100 Destroy 0b10 Robot/NC 15 | 10 . 5 Destroy Leader 40 | . 20 20 Successful Hack 4 | . . 4 Destroy Structure 53 | . 1 52 Lose Combat Pursuer 15 | . . 15 Influence Decreases 307 | 10 50 247 Entered New Map 32 | . . 32 Time Decay 205 | 10 50 145 Lost Part 70 | . . 70 Squads Dispatched 1 | . 1 . Investigation . | . . . Extermination . | . . . Reinforcement 1 | . 1 . Assault . | . . . Garrison . | . . . Intercept . | . . . Searches Triggered . | . . . Construction Impeded . | . . . Haulers Reinforced . | . . . Active Scanning Responses . | . . . Cargo Convoy Interrupts . | . . . Stealth | -11 -10 -10 --------- Run | Yrd Mat Min Distress Signals . | . . . Communications Jammed . | . . . Distress Signals . | . . . Times Spotted 31 | . 7 24 Peak Tracking Total 17 | . 4 17 Tactical Retreats 1 | . . 1 Traps | -11 -10 -10 ------- Run | Yrd Mat Min Traps Triggered . | . . . Indirectly . | . . . Trap Hack Attempts . | . . . Triggered . | . . . Disarmed . | . . . Reprogrammed . | . . . Reused . | . . . Traps Extracted . | . . . Installed . | . . . Triggered . | . . . Machines | -11 -10 -10 ---------- Run | Yrd Mat Min Machines Disabled . | . . . Max in Single Turn . | . . . Machines Repaired . | . . . Machines Dismantled . | . . . Machines Sabotaged . | . . . Overloaded Fab Kills . | . . . Hacking | -11 -10 -10 --------- Run | Yrd Mat Min Machines Accessed 3 | . 2 1 Terminals 2 | . 1 1 Fabricators . | . . . Repair Stations . | . . . Recycling Units 1 | . 1 . Scanalyzers . | . . . Garrison Access . | . . . Total Hacks 5 | . 4 1 Successful 3 | . 2 1 Failed 2 | . 2 . Catastrophic . | . . . Database Lockouts . | . . . Manual . | . . . Terminals 4 | . 3 1 Fabricators . | . . . Repair Stations . | . . . Recycling Units 1 | . 1 . Scanalyzers . | . . . Garrison Access . | . . . Terminal Hacks 3 | . 2 1 Record 1 | . 1 . Alert Level 1 | . 1 . Dispatch Records 1 | . . 1 Fabricator Hacks . | . . . Repair Station Hacks . | . . . Recycling Unit Hacks . | . . . Scanalyzer . | . . . Garrison Access Hacks . | . . . Unauthorized Hacks . | . . . Terminals . | . . . Fabricators . | . . . Repair Stations . | . . . Recycling Units . | . . . Scanalyzers . | . . . Garrison Access . | . . . Data Cores Recovered . | . . . Used . | . . . Hacking Detections 2 | . 2 . Full Trace Events . | . . . Feedback Events . | . . . Feedback Blocked . | . . . Robot Schematics Acquired . | . . . Robots Built . | . . . Authchips . | . . . Time . | . . . Total Robot Build Rating . | . . . Part Schematics Acquired . | . . . Parts Built . | . . . Authchips . | . . . Time . | . . . Total Part Build Rating . | . . . Part Studies Acquired . | . . . Parts Repaired . | . . . Time . | . . . Parts Recycled . | . . . Recycled Matter . | . . . Retrieved Matter . | . . . Retrieved Components . | . . . Parts Scanalyzed . | . . . Part Schematics Acquired . | . . . Parts Damaged . | . . . Bothacking | -11 -10 -10 ------------ Run | Yrd Mat Min Used RIF Installer . | . . . Robots Hacked . | . . . Non-combat . | . . . Combat . | . . . Robot Hacks Applied . | . . . Relay Couplers Released . | . . . Fabnet Peak Effective % . | . . . Robots Rewired . | . . . Allies Hacked . | . . . Hacks Repelled . | . . . Allies | -11 -10 -10 -------- Run | Yrd Mat Min Total Allies . | . . . Largest Group . | . . . Highest-Rated Group . | . . . Highest-Rated Ally . | . . . Total Orders . | . . . Ally Attacks . | . . . Total Damage . | . . . Kills . | . . . Allies Corrupted . | . . . Allies Melted . | . . . Intel | -11 -10 -10 ------- Run | Yrd Mat Min Active Infowar (turns) 490 | 17 222 251 Seismic 490 | 17 222 251 Robot Analysis Total . | . . . Derelict Logs Recovered . | . . . Drone Launches . | . . . Drone Recoveries . | . . . Exploration | -11 -10 -10 ------------- Run | Yrd Mat Min Turns Passed 654 | 132 222 300 Spaces Moved 351 | 66 113 172 Core 5 | 2 . 3 Treads 151 | 64 87 . Legs 195 | . 26 169 Wheels . | . . . Hover . | . . . Flight . | . . . Fastest Speed 50 | 50 120 100 Average Speed 137 | 156 150 121 Slowest Speed 300 | 160 160 300 Overloaded Moves . | . . . Propulsion Burnouts . | . . . Robots Hopped . | . . . Potential Cave-ins . | . . . Cave-ins Triggered . | . . . Exploration Rate (%) 22 | 4 28 34 Regions Visited 2 Branch Regions 1 Pre-discovered Areas . | . . . Known Exits Taken . | . . . Unknown Exits Taken 2 | 1 1 . Scrap Searched 1 | . . 1 Spaces Dug . | . . . Terrain Destroyed 85 | . . 85 Melee . | . . . Projectile 2 | . . 2 AOE 83 | . . 83 Terrain Rammed . | . . . Walls Destroyed . | . . . Machines Disabled . | . . . Actions | -11 -10 -10 --------- Run | Yrd Mat Min Total 452 | 83 145 224 Wait 23 | . 14 9 Move 349 | 65 112 172 Hop . | . . . Pick Up 15 | 6 4 5 Fast Attach 6 | 6 . . Attach 4 | 1 . 3 Detach . | . . . Swap 8 | . 3 5 Drop 9 | . 1 8 Fire 36 | 5 9 22 Melee . | . . . Ram . | . . . Kick 2 | . 2 . Crush . | . . . Escape Stasis . | . . . Rewire . | . . . Trap . | . . . Miscellaneous . | . . . Route ------- -11/Scrapyard -10/Materials (discovered 3 exits: *Min x2 / [*Sub]) -10/Mines History --------- Turn | Location | Event 28 | -11/Scrapyard | Discovered new exit (range 16) 133 | -11/Scrapyard | Entered Materials 302 | -10/Materials | Discovered new exit (range 9) 307 | -10/Materials | Discovered new exit (range 10) 310 | -10/Materials | Build established: Mutant 321 | -10/Materials | Discovered new exit (range 15) 355 | -10/Materials | Entered Mines 408 | -10/Mines | A weapon hastily lodged in a ceiling crevice suddenly fell to the ground 444 | -10/Mines | Received a Rocket Launcher from a helpful Derelict 597 | -10/Mines | Assembled infested the area 644 | -10/Mines | Core integrity fell below 50% 648 | -10/Mines | Core integrity fell below 20% 655 | -10/Mines | Destroyed 20 combat bots 655 | -10/Mines | Destroyed by D-53 Grenadier with Mini Grenade Launcher Last Messages --------------- 00625_ as-06038 destroyed. 00627_ The unstable cave ceiling collapses. 00631_ Destroyed Asb. Hover Unit. 00631_ as-49384 destroyed. 00634_ as-18083 destroyed. [Achievement: Killing Spree] 00639_ C-45 Heavy ARC bursts open, deploying its payload. 00639_ D-53 Grenadier unfolds itself. 00639_ Aluminum Leg destroyed. 00641_ Power failure, Ion Engine shutdown. 00642_ The unstable cave ceiling collapses. 00645_ Aluminum Leg destroyed. 00647_ Particle Cannon destroyed. 00648_ The unstable cave ceiling collapses. 00649_ Ion Engine destroyed. 00652_ The unstable cave ceiling collapses. 00652_ Dropped Sml. Storage Unit. 00654_ The unstable cave ceiling collapses. 00654_ Aluminum Leg destroyed. 00655_ The unstable cave ceiling collapses. Map ----- +----------------------------------------------------+ | ???????????????????????????????? | | ???????????????????????????????? | | ???????????????????????????????? | | ???????????????????????????????? | | ???????????????????????????????? | | ?????? " ????????????????????? | | ????# ????????????????????? | | ?? ????????????????????? | | ?## ????????????????????? | | ?# # ????????????????????? | | ? ????????????????????? | | ?# ????????????????????? | | ?# ##???????????????????? | | ?# # #???###?????????????? | | ?# # #??u ??????????????? | | ?# ### ##??????????????? | | ?## # % #??????????????? | | ?# d ##??????????????? | | ?? #??????????????? | | ???# # #??????????????? | | ???# d #?????????????????? | | ???# ##????????????????? | | ???# #????????????????? | | ???# ! ##????????????????? | | ???# #?????####???????? | | ???# @ #?????# ##??????? | | ???# ##?????# #??????? | | ???# # ###?????# #??????? | | ???# ##### ##????# ##?????? | | ???# ##?## #????# ###???? | | ???# ##??# #????# ##### | | ???# ##### ##???# [ | | ???# ##?## #### | | ???# ### ##??? | | ???########## #???? | | ???????????## #???? | | ???????????# #???? | | ???????????# ##### ##???? | | ???????????## ##???## ##????? | | ????????????# ###?????####?????? | | ?#########??# #????????????????? | | ?#T """ #??#*#????????????????? | | ??# """ #??#%#????????????????? | | ??# """ ####%#????????????????? | | ??# = !! #????????????????? | | ??# ######????????????????? | | ??# #?????????????????????? | | ??########?????????????????????? | | ???????????????????????????????? | | ???????????????????????????????? | +----------------------------------------------------+ Best States ------------- Heat Dissipation 39 Energy Generation 10 Energy Capacity 250 Matter Stores 300 Matter Capacity 300 Sight Range 16 Terrain Scan Density 10 Evasion (%) 55 Recoil Reduction 2 Item Schematics ----------------- None Robot Schematics ------------------ None Fabricated ------------ Nothing Repaired ---------- Nothing Studied --------- None Alien Tech Used ----------------- None Achievements -------------- Exterminator Killing Spree Challenges ------------ None Game ------ Seed NetworkConceptFilter Manual? 0 Play Time 00:22:41 Cumulative 39.9 hours Start 2026.09.15 @ 17:37:04 End 2026.09.15 @ 18:03:33 Sessions 5 Manual Loads 0 Difficulty Rogue Special Mode None Game No. 22 Rogue 20 Adventurer 2 Explorer 0 Win Type - Total 0 Types 0/0/0/0/0/0/0/0/0/0 Lore% 10 Gallery% 22 Achievement% 17 Wizard Run 0 Options --------- Layout 0 ASCII 0 Keyboard 0 Movement Mouse Keybinds 0 Fullscreen 1 Font 18/SmallcapsGlow Map View 38x25 Zoom Use 25% Tactical HUD 1 Map Filters NONE Filters NONE Steam 1 RUN: a7c08262-1583-4a17-9828-8bcb88229fef